{"text_format":"1","workbook":"xlsx","n_sheets":3,"sheets":["Hinweis zum Datenschutz","Erhebungsbogen","Erläuterungen"],"not_rendered":{"charts":0,"images":1,"macros":1,"external_links":1,"defined_names":147,"comments":0,"pivot_tables":0},"unopened":[],"bounds":{"document_bytes":16777216,"sheet_cells":100000,"rows_first":2000,"rows_last":500,"rows_between":2000,"halvings":0,"cell_chars":16384,"cell_head_chars":4096},"cells_cut":0,"cells_raw":0,"read":"whole","date_system":"1900"}

{"sheet":"Hinweis zum Datenschutz","index":0,"n_rows":5,"n_cols":2,"rows_kept":5,"cut":false,"hidden":false,"merged":[]}
[]
[null,"Für uns ist es selbstverständlich, dass wir Ihre Daten absolut vertraulich behandeln und nicht an "]
[null,"Dritte weitergeben. Dennoch möchten wir Sie gem. Art. 21 der Datenschutz-Grundverordnung"]
[null,"(DSGVO) auf Ihr Widerspruchsrecht und weitere Rechte hinweisen. Über den grauen Button rechts "]
[null,"kommen Sie zum Erhebungsbogen den Sie uns auch per Mail zukommen lassen können."]

{"sheet":"Erhebungsbogen","index":1,"n_rows":260,"n_cols":12,"rows_kept":260,"cut":false,"hidden":false,"merged":[[21,0,22,0],[21,1,22,1],[28,1,29,1],[30,1,30,2],[59,1,59,2],[56,2,56,3],[28,0,29,0],[33,0,34,0],[58,1,58,2],[0,1,0,3],[33,1,34,1],[1,1,1,3],[33,3,34,3],[11,2,11,4],[2,1,2,3],[10,2,10,4],[12,2,12,4],[28,2,29,3],[16,2,16,4],[13,2,13,4],[14,2,14,4],[15,2,15,4],[24,1,24,2],[17,2,17,4],[244,4,244,5],[231,1,231,3],[23,1,23,2],[55,1,55,4],[36,1,36,3],[72,1,72,2],[133,1,133,3],[125,1,125,2],[128,1,128,2],[118,1,118,2],[98,1,98,2],[259,2,259,3],[252,1,252,5],[253,1,253,5],[255,2,255,3],[254,2,254,3],[256,2,256,3],[258,2,258,3],[81,0,82,0],[76,1,76,2],[41,1,41,2],[242,4,242,5],[62,2,62,4],[82,1,82,3],[84,1,84,3],[57,1,57,3],[97,1,97,3],[114,0,115,0],[114,1,115,2],[164,1,164,3],[112,1,112,3],[117,4,118,4],[117,1,117,2]]}
[null,"Erhebungsbogen Metallbau-Handwerk NRW",null,null,"Dateiname:",{"$f":"C260","v":"ME2023"},"ME","C:\\Referat 2\\7-Projekte\\004-Betriebsvergleiche-NRW\\6-Produkte\\80-Vorlagen\\12-Metallbau\\EB_Metallbauer_2020.xlsm"]
[null,{"$f":"CONCATENATE(\"Berichtsjahr  \",C10)","v":"Berichtsjahr  2023"}]
[null,"spätester Abgabetermin: 30.11.2024"]
[]
[]
["1. ","Allgemeine Angaben"]
["1.01","Auswertungsnummer (wird von der LGH eingetragen)"]
["1.02","Wünschen Sie eine Unternehmensanalyse? ",null,"Ja = J, Nein = N"]
[null,"Bei Betriebsvergleich Berücksichtigen J/N","J"]
["1.03","Berichtsjahr",2023]
["1.04","Ansprechpartner"]
["1.05","Firma"]
["1.06","Straße"]
["1.07","Plz"]
["1.08","Ort"]
["1.09","Telefon"]
["1.10","Email"]
["1.11","Berater"]
[null,"Erfassungsperiode   (Jahr=0, Quartal = 1, Monat = 2)",0]
[null,{"$f":"IF(OR(ER_ErfassungsTyp=1,ER_ErfassungsTyp=2),\"welches Quartal bzw. welcher Monat?\",\"\")","v":""},0]
[]
["2.","Angaben zum Betrieb"]
[]
[null,"Tätigkeitsbereich"]
[null,"Tragen Sie bitte in dem Bereich in dem Sie primär tätig sind eine 1 ein. \nBitte wählen Sie nur einen der drei Bereiche"]
["2.01","Alu-Glasbau"]
["2.02","Schlosserei"]
["2.03","Feinwerkmechanik"]
["2.04","Rechtsform des Betriebes","1 = Einzelunternehmen, \n2 = GbR,     5 = GmbH\n3 = oHG,     6 = GmbH & Co.KG,\n4 = KG,       7 = Sonstige"]
[]
["2.05","Falls sich Ihr Betrieb auf eigenen Grundstücken und in eigenen Gebäuden \nbefindet, geben Sie bitte die durchschnittliche, ortsübliche Miete pro Monat an",null,"€ / Monat"]
[]
[]
["3.","Angaben zur Beschäftigtenstruktur"]
[]
[null,"Ermittlung der Anzahl der im Berichtsjahr beschäftigten Arbeitskräfte"]
[null,"(12 Monate Beschäftigung je Arbeitskraft = 1,00 Beschäftigter, \n1 Monat Beschäftigung = 1/12 Beschäftigter =0,08)",null,null,"Anzahl der Beschäftigten"]
[null,null,null,null,null,null,null,"Normale Stunden pro Woche",37]
["3.01","Tätiger Inhaber (auch GmbH Gesellschafter-Geschäftsführer)",null,null,null,null,null,"Vorgabew. Std. pro Woche Inh.",50]
["3.02",null,"wöchentliche Arbeitszeit",null,"Stunden",null,null,"Bewertung Inhaber",{"$f":"IF($D$40>0,$D$40/$I$38,IF($E$39>0,$I$39/$I$38,0))","v":0}]
["3.03",null,"Anteil direkt verrechenbar (produktiv)",null,"%",null,null,"Bewerteter Inhaber",{"$f":"$E$39*$I$40","v":0},null,{"$f":"IF(ER_Inhaber_handwerklich_Proz=\"\",\"0\",100-ER_Inhaber_handwerklich_Proz)","v":"0"},"Anteil unproduktiv"]
["3.04","Techniker, Meister, Betriebsleiter u.a. im Angestelltenverhältnis \n(mit einem direkt verreichenbaren \"produktiven\" Anteil)",null,null,null,null,null,null,{"$f":"$E$42","v":0}]
["3.05",null,"Anteil direkt verrechenbar (produktiv)",null,"%",null,null,null,null,null,{"$f":"IF(ER_Meister_handwerklich_Proz=\"\",\"0\",100-ER_Meister_handwerklich_Proz)","v":"0"},"Anteil unproduktiv"]
[null,"Im Fertigungsbereich direkt verrechenbar \"produktiv\" tätig"]
["3.06","Meister, Gesellen, Facharbeiter, Helfer usw.",null,null,null,null,null,"bewertung Lehrlinge",{"$f":"$E$45","v":0}]
["3.07","Handwerkslehrlinge",null,null,null,null,null,30,{"$f":"$E$46*$H$46/100","v":0}]
[null,"Im kaufmännischen Bereich nicht direkt verrechenbar \"unproduktiv\" tätig"]
["3.08","Kaufmännische Angestellte",null,null,null,null,null,null,{"$f":"$E$48","v":0}]
["3.09","Technische Angestellte",null,null,null,null,null,null,{"$f":"$E$49","v":0}]
["3.10","Sonstige (Lehrlinge, Praktikanten, Lagerverwalter usw.)",null,null,null,null,null,null,{"$f":"$E$50","v":0}]
[]
[]
[null,"Angaben zur Kapazität in Stunden","Krankheits-     tage","genommene Urlaubstage","bezahlte \nÜberstunden\ninkl. AZK"]
["3.11","Techniker, Betriebsleiter, Meister u.a. im Angestelltenverhältnis"]
["3.12","Meister, Gesellen, Facharbeiter, Helfer usw."]
[null,"Die folgenden Angaben beziehen sich auf die unter 3.06 angegebenen \"produktiv\" tätigen Mitarbeiter."]
["3.13","Kurzarbeitsstunden im Fertigungsbereich","Stunden"]
["3.14","Normale wöchentliche Arbeitszeit                                                                                                                     \n40 Stunden/Woche = 1;  37 Stunden/Woche = 0;   andere Regelung = Stunden/Woche"]
["3.15","Durchschnittliche unproduktive Zeiten je \"produktiv\" Beschäftigten",null,"Std./Tag"]
["3.16","Mittellohn      = Summe aller gezahlter Stundenlöhne\n                          Anzahl der gewerbl. Mitarbeiter ohne Auszubildende",null,"€/Std."]
["3.17","Produktive Stunden der Leiharbeiter",null,"Stunden"]
[]
[null,"Ergänzende Kommentare bzw. Angaben?                                                                Im rechten Feld haben Sie die Gelegenheit, einige kurze ergänzende Angaben zu machen. So z.B. wenn Sie im Betrieb Aufzeichnungen zu gesamten produktiven Stunden haben und diese angeben möchten."]
[]
[]
["4.","Angaben zur Gewinn- und Verlustrechnung"]
[]
[null,"Erträge"]
["4.01","Umsatzerlöse"]
["4.02","Bestandsveränderungen unfertige Bauaufträge/Arbeiten \n(Bitte mit Vorzeichen +/- angeben)"]
[null,"= Handwerksleistung",null,null,{"$f":"ER_Handwerkserloese+ER_Bestandsveraenderung_halbfertige","v":0}]
[null,"= Betriebsleistung",null,null,{"$f":"E71","v":0}]
["4.03","Sonstige betriebliche Erträge \n(Erlöse aus Anlagenverkäufen, Steuererstattungen usw.)"]
["4.04","= Summe der Erträge",null,null,{"$f":"E72+E73","v":0}]
[null,"Aufwendungen"]
[null,"Wareneinsatz"]
["4.05","Aufwendungen für Roh-, Hilfs- und Betriebsstoffe und für bezogene Waren"]
["4.06","Aufwendungen für bezogene Fremdleistungen"]
["4.07","Aufwand für Leiharbeiter",null,null,null,null,"Stunden Leiharbeiter",{"$f":"IF(ER_Aufwand_Leiharbeiter_pro_Std=0,E79/23,E79/ER_Aufwand_Leiharbeiter_pro_Std)","v":0}]
["4.08","Aufwand für Leiharbeiter pro Stunde","€/Std.",null,null,null,null,{"$f":"IF(H79=0,0,H79/1420)","v":0}]
[null,"Personalaufwand (abzüglich Erstattungen)"]
["4.09","Lohnaufwand für Lohnempfänger (siehe 3.06)"]
[null,"(Bruttolöhne, Arbeitgeberanteil zur gesetzlichen Sozialversicherung, tarifliches Urlaubsgeld, \nsonstige tarifliche und freiwillige Zuwendungen, Lohnfortzahlung im Krankheitsfall)"]
["4.10","Ausbildungsvergütung für Handwerkslehrlinge (3.07) inkl. Sozialkosten"]
["4.11","Gehaltsaufwand für Gehaltsempfänger und kaufmännische Lehrlinge (siehe 3.08 - 3.10)\n(Bruttogehälter, sonst wie oben)"]
["4.12","Gehalt für Techniker, Meister, Betriebsleiter u.a. im Angestelltenverhältnis (siehe 3.04) inkl. Sozialkosten"]
["4.13","Gehalt für GmbH-Geschäftsführer inkl. Sozialkosten"]
["4.14","Berufsgenossenschaftsbeiträge"]
[null,"Abschreibungen"]
["4.15","Afa auf immaterielles Anlagevermögen"]
["4.16","Afa auf Gebäude"]
["4.17","Afa auf sonstiges Anlagevermögen"]
["4.18","Geringwertige Wirtschaftsgüter (Poolabschreibung)"]
[null,"Sonstige betriebliche Aufwendungen"]
["4.19","Mieten für Grundstücke und Gebäude (ohne Fahrzeuge und Maschinen)"]
["4.20","Energiekosten (Strom, Gas, Wasser, Heizung)"]
["4.21","Aufwendungen für eigene Grundstücke und Gebäude"]
["4.22","Fahrzeugkosten (ohne Abschreibungen und Leasinggebühren) also Kfz-Versicherung, -Steuer,                          -Reparatur, -Treibstoff"]
["4.23","Sondereinzelkosten des Vertriebs \n(z.B. Garantiearbeiten, Fracht, Zölle. Exportkosten, Versicherungen, Provisionen u.a.)"]
["4.24","Sondereinzelkosten der Fertigung (z.B. Modellkosten, Entwicklung)"]
["4.25","Instandhaltung von Maschinen Werkzeugen und BGA"]
["4.26","Kosten der Entsorgung"]
["4.27","Werkzeuge und Kleingeräte (Sofortabschreibung)"]
["4.28","EDV-Kosten (Wartung, Gebühren, etc.)"]
["4.29","Sonstiger betrieblicher Aufwand im Rahmen der gewöhnlichen Geschäftstätigkeit"]
[null,"Finanzergebnis"]
["4.30","Bezahlte kurzfristige Zinsen (Kontokorrent)"]
["4.31","Bezahlte langfristige Zinsen (Darlehen, Gewährleistungsbürgschaften)"]
["4.32","Bezahlte Zinsen für Gesellschafterdarlehn (GmbH)"]
[null,"Steuern"]
["4.33"," Steuern       a) Körperschaftssteuer, Solidaritätszuschlag (GmbH)",null,null,null,null,"errechnetes "]
["4.34","                   b) Betriebssteuern (Gewerbesteuern)",null,null,null,null,"Ergebins:"]
["4.35"," = Jahresüberschuss/ -fehlbetrag\n     Bitte angeben, da die Zahl zur Kontrollrechnung benötigt wird",null,null,null,null,{"$f":"ER_Summe_Erloese-SUM(E77:E79)-SUM(E83:E88)-SUM(E90:E93)-SUM(E95:E105)-SUM(E107:E109)-ER_Steuern_GmbH-ER_Steuern","v":0}]
[]
["5.","Sonstige Angaben"]
[]
[]
[null,"Auftragsstruktur  (gewissenhafte Schätzung genügt)"]
[null,"Von der Gesamtleistung = 100 % entfielen auf:"]
["5.01","Öffentliche Auftraggeber",null,null,"%"]
["5.02","Bauwirtschaft und Architekten",null,null,"%"]
["5.03","Sonstige industrielle Auftraggeber (z. B. Zulieferer)",null,null,"%"]
["5.04","Private Auftraggeber",null,null,"%"]
["5.05","Sonstige Auftraggeber",null,null,"%"]
["","Summe",null,{"$f":"SUM(D120:D124)","v":0},"%"]
["5.06","Privatentnahmen abzüglich Einlagen  (einschließlich Einkommenssteuern)",null,null,"€"]
["5.07","Durchschnittlicher Zuschlag auf Materialeinsatz",null,null,"%"]
["5.08","Durchschnittlicher Zuschlag auf Fremdleistungen",null,null,"%"]
["5.09","Durchschnittlicher Stundenverrechnungssatz (Preis pro Stunde)",null,null,"€/Std."]
[]
[]
["6.","Angaben aus der Bilanz"]
[]
[null,"Die nachstehende Bilanzgliederung ist vereinfacht und auf das Wesentliche beschränkt. Bei der Aufgliederung der Bilanz ordnen Sie bitte weitergehende Untergliederungen diesen aufgeführten Bilanzpositionen sachlich zu."]
[null," Aktiva"]
[null,"Anlagevermögen",null,null,"€"]
["6.01","Immaterielles Anlagevermögen",null,null,null,null,{"$f":"IF(E137<0,1,0)","v":0}]
["6.02","Immobilien:      a) Grundstücke und Gebäude",null,null,null,null,0]
["6.03","                       b) Mietereinbauten, Hofbefestigungen usw.",null,null,null,null,0]
["6.04","Technische Anlagen",null,null,null,null,0]
["6.05","Fuhrpark",null,null,null,null,0]
["6.06","Betriebs- und Geschäftsausstattung",null,null,null,null,0]
["6.07","Geleistete Anzahlungen",null,null,null,null,0]
["6.08","Sonstiges Anlagevermögen, Finanzanlagen",null,null,null,null,0]
[null,"Umlaufvermögen"]
["6.09","Material- und Handelswarenbestand",null,null,null,null,{"$f":"IF(E146<0,1,0)","v":0}]
["6.10","Teilfertige Arbeiten",null,null,null,null,0]
["6.11","Geleistete Anzahlungen an Lieferanten",null,null,null,null,0]
["6.12","Forderungen aus Lieferung und Leistung an Kunden",null,null,null,null,0]
["6.13","Sonstige Forderungen",null,null,null,null,0]
["6.14","Kasse, Bank",null,null,null,null,0]
["6.15","Sonstiges Umlaufvermögen",null,null,null,null,0]
["6.16","Posten der aktiven Rechnungsabgrenzung",null,null,null,null,{"$f":"IF(E153<0,1,0)","v":0}]
["6.17","Nicht durch Eigenkapital gedeckter Fehlbetrag",null,null,null,null,{"$f":"IF(E154<0,1,0)","v":0}]
[null,"Summe Aktiva",null,null,{"$f":"SUM(E137:E144)+SUM(E146:E152)+SUM(E153:E154)","v":0}]
[null,"Passiva",null,"€"]
["6.18",{"$f":"CONCATENATE(\"Eigenkapital am 1.1.\",C10)","v":"Eigenkapital am 1.1.2023"}]
["6.19",{"$f":"CONCATENATE(\"+ Einlagen \",C10)","v":"+ Einlagen 2023"}]
["6.20",{"$f":"CONCATENATE(\" - Entnahmen \",C10)","v":" - Entnahmen 2023"}]
["6.21",{"$f":"CONCATENATE(\"+ Gewinn \",C10,\"/ - Verlust \",C10)","v":"+ Gewinn 2023/ - Verlust 2023"},null,null,"€"]
["6.22",{"$f":"CONCATENATE(\"= Eigenkapital am 31. 12. \",C10)","v":"= Eigenkapital am 31. 12. 2023"},null,{"$f":"D157+D158-D159+D160","v":0}]
["6.23","Gesellschafterdarlehen (GmbH)",null,null,null,null,{"$f":"IF(E162<0,1,0)","v":0}]
["6.24","Sonderposten mit Rücklagenanteil",null,null,null,null,{"$f":"IF(E163<0,1,0)","v":0}]
["6.25","Rückstellungen     a) Pensionsrückstellung ",null,null,null,null,{"$f":"IF(E164<0,1,0)","v":0}]
["6.26","                           b) Steuer- u. sonstige Rückstellungen inkl. Arbeitszeitkonto",null,null,null,null,{"$f":"IF(E165<0,1,0)","v":0}]
[null,"Verbindlichkeiten"]
["6.27","Langfristige Bankverbindlichkeiten (Darlehen)",null,null,null,null,{"$f":"IF(E167<0,1,0)","v":0}]
["6.28","Kurzfristige Bankverbindlichkeiten (Kontokorrent)",null,null,null,null,0]
["6.29","Verbindlichkeiten aus Lieferung und Leistung",null,null,null,null,0]
["6.30","Erhaltene Anzahlungen von Kunden",null,null,null,null,0]
["6.31","Sonstige Verbindlichkeiten",null,null,null,null,0]
["6.32","Posten der passiven Rechnungsabgrenzung",null,null,null,null,0]
[null,"Summe Passiva",null,null,{"$f":"SUM(E161:E165)+SUM(E167:E171)+E172","v":0}]
[]
[]
[null,"Fertig mit der Eingabe?  Kontrollieren Sie hier Ihre Eingaben:"]
[]
[]
[]
[]
[]
[]
[]
[]
[]
[]
[]
[]
[]
[]
[]
[]
[]
[]
[]
[]
[]
[]
[]
[]
[]
[]
[]
[]
[]
[]
[]
[]
[]
[]
[]
[]
[]
[]
[]
[]
[]
[]
[]
[]
[]
[]
[]
[]
[]
[]
[]
[null,null,null,null,null,null,"von","bis","Größenklasse"]
[null,null,null,null,null,null,0,14.94,1]
[null,null,null,null,null,null,14.5,9999,2]
[null,null,null,null,null,null,9999,99999,3]
[null,"Kontrolldaten",null,null,null,null,99999,999999,4]
[]
[null,"Größenklasse",{"$f":"IF(AND(D235>G229,D235<=H229),I229,IF(AND(D235>G230,D235<H230),I230,IF(AND(D235>G231,D235<=H231),I231,IF(AND(D235>G232,D235<H232),I232,\"\"))))","v":""}]
[null,"Zahl der Beschäftigten unbewertet / bewertet",{"$f":"SUM($E$39:$E$50)+$H$80","v":0},{"$f":"SUM(I41:I50)+$H$80","v":0},{"$f":"IF(AND(C235=0,D243<>0),\"Beschäftigte fehlen!\",\" \")","v":" "}]
[null,"Summe Krankheitstage je produktiv Beschäftigen",{"$f":"IF(SUM(ER_Meister+ER_Gesellen)=0,0,SUM(C54:C55)/(ER_Meister+ER_Gesellen))","v":0},{"$f":"IF(AND($E$42+$E$45>0,$C$236=0),\"Keine Krankheitstage?\",\" \")","v":" "},null,null,{"$f":"IF(AND($E$42+$E$45>0,$C$236>0),$C$236/($E$42+#REF!+$E$45),0)","v":0}]
[null,"Summe Urlaubstage  je produktiv Beschäftigten",{"$f":"IF(SUM(ER_Meister+ER_Gesellen)=0,0,SUM(D54:D55)/(ER_Meister+ER_Gesellen))","v":0},{"$f":"IF(AND($E$42+$E$45>0,$C$237=0),\"Keine Urlaubstage?\",\" \")","v":" "},null,null,{"$f":"IF(AND($E$42+$E$45>0,$C$237>0),$C$237/($E$42+#REF!+$E$45),0)","v":0}]
[null,"Summe Überstunden",{"$f":"SUM(E54:E55)","v":0}]
[]
[null,"Summe Auftragsstruktur muss 100% ergeben",{"$f":"$D$125","v":0},{"$f":"IF(AND(C240<>100,C240<>0),\"Differenz in der Auftragsstruktur\",\" \")","v":" "},null,null,{"$f":"IF(C240=0,0,IF(C240=100,0,C240))","v":0}]
[]
[null,"Kontrolldaten zur  GuV ","eingegebener Wert","errechneter Wert","Differenz"]
[null,"Jahresüberschuss",{"$f":"E113","v":0},{"$f":"$E$74-SUM($E$77:$E$79)-SUM($E$83:$E$88)-SUM($E$90:$E$93)-SUM($E$95:$E$105)-SUM($E$107:$E$109)-$E$111-$E$112","v":0},{"$f":"IF(D243<>C243,G243,\" \")","v":" "},null,{"$f":"C243-D243","v":0}]
[null,"Kontrolldaten zur  Bilanz","Summe Aktiva","Summe Passiva","Differenz"]
[null,"Bilanzsummen",{"$f":"E155","v":0},{"$f":"E173","v":0},{"$f":"IF(D245<>C245,G245,\" \")","v":" "},null,{"$f":"C245-D245","v":0}]
[null,{"$f":"IF(SUM(G137:G154)>0,\"Achtung, negativer Wert auf Aktivseite Bilanz!!\",\"\")","v":""},{"$f":"IF(SUM(G162:G172)>0,\"Achtung, negativer Wert auf Passivseite Bilanz!!\",\"\")","v":""}]
[]
[]
[]
[]
[]
[]
[null,"Hier können Sie die erfassten Daten automatisch  in einer Datei speichern. Wichtig dabei ist die Angabe des Verzeichnis und - wenn keine Betriebsnummer angegeben ist - die laufende Nummer !"]
[]
[null,"Branchenkürzel","ME"]
[null,"Berichtsjahr",{"$f":"C10","v":2023}]
[null,"Dateikennzeichnung oder laufende Nummer:",{"$f":"IF(ER_Betriebsnr>0,ER_Betriebsnr,\"\")","v":""}]
[null,"(Sie können Nummern oder Buchstaben vergeben. )"]
[null,"Verzeichnis","C:\\Eigene Dateien"]
[null,"Unter diesem Namen wird die Datei gespeichert:",{"$f":"CONCATENATE(C255,C256,C257)","v":"ME2023"}]

{"sheet":"Erläuterungen","index":2,"n_rows":250,"n_cols":8,"rows_kept":250,"cut":false,"hidden":false,"merged":[[140,1,140,7],[128,1,128,7],[117,1,117,7],[150,1,150,7],[1,0,1,7],[6,1,6,7],[8,1,8,7],[9,1,9,7],[127,1,127,7],[11,1,11,7],[13,1,13,7],[15,1,15,7],[137,1,137,7],[138,1,138,7],[139,1,139,7],[112,1,112,7],[122,1,122,7],[98,1,98,7],[100,1,100,7],[104,1,104,7],[105,1,105,7],[109,1,109,7],[148,1,148,7],[249,4,249,10],[168,1,168,7],[179,1,179,7],[154,1,154,7],[155,1,155,7],[156,1,156,7],[157,1,157,7],[159,1,159,7],[183,1,183,7],[184,1,184,7],[185,1,185,7],[153,1,153,7],[178,1,178,7],[190,1,190,7],[191,1,191,7],[193,1,193,7],[160,1,160,7],[161,1,161,7],[165,1,165,7],[167,1,167,7],[166,1,166,7],[188,1,188,7],[181,1,181,7],[180,1,180,7],[186,1,186,7],[187,1,187,7],[163,1,163,7],[164,1,164,7],[171,1,171,7],[182,1,182,7],[162,1,162,7],[192,1,192,7],[158,1,158,7],[176,1,176,7],[172,1,172,7]]}
[]
["Erläuterungen zum Ausfüllen des Erhebungsbogen"]
[]
["Der elektronische Erhebungsbogen soll Ihnen die Erfassung Ihrer Daten erleichtern."]
["In dieser Tabelle wollen wir Ihnen einige kurze Erläuterungen zum Ausfüllen geben:"]
[]
["1.","Der Erhebungsbogen ist so eingerichtet, dass Sie nur in den Eingabefeldern (weiße, umrahmte Felder) Angaben machen können."]
[]
["2.","Bitte benutzen Sie die Tabulatortaste, um in das nächste Eingabefeld zu gelangen."]
[null,"Achtung: Schließt man die Eingabe mit der \"Entertaste\" ab, springt der Kursor nur in die nächste Zelle unter der eingegebenen Zelle."]
[]
["3.","Über die Schaltflächen kommen Sie mit dem Kursor zum Anfang des gewählten Eingabebereiches."]
[]
["4.","Bitte überprüfen Sie nach Ihrer Eingabe die Daten auf Vollständigkeit. Dazu haben wir am Ende der Datei einen Kontrollbereich installiert, in dem die wichtigsten Zahlen dargestellt sind und Differenzen ausgewiesen werden. Auf Differenzen werden Sie durch rote Schrift hingewiesen. "]
[]
["5.","Bitte speichern Sie Ihre Daten in dieser Exceldatei und senden diese an die Adresse Betriebsvergleiche@lgh.de"]
[null,"Sollten Sie uns die Daten lieber auf dem Postwege zukommen lassen wollen, senden Sie den "]
[null,"Ausdruck bitte an:"]
[]
[null,null,"Landes-Gewerbeförderungsstelle des "]
[null,null,"nordrhein-westfälischen Handwerks e.V."]
[null,null,"Postfach 10 34 12",null,null,"Auf'm Tetelberg 7"]
[null,null,"40025 Düsseldorf",null,null,"40221 Düsseldorf"]
[]
[]
[]
[]
[]
[]
[]
[]
[]
[]
[]
[]
[]
[]
[]
[]
[]
[]
[]
[]
[]
[]
[]
[]
[]
[]
[]
[]
[]
[]
[]
[]
[]
[]
[]
[]
[]
[]
[]
[]
[]
[]
[]
[]
[]
[]
[]
[]
[]
[]
[]
[]
[]
[]
[]
[]
[]
[]
[]
[]
[]
[]
[]
[]
[]
[]
[]
[]
[]
[]
[]
[]
[]
["1.","Allgemeine Angaben"]
[]
[null,"Bitte geben Sie eine Auswertungsnummer nur dann an, wenn Sie bereits an einem Betriebsvergleich teilgenommen haben und Ihre Auswertungsnummer kennen. Im anderen Fall lassen Sie das Feld \"Auswertungsnummer\" bitte frei."]
[]
[null,"Falls Sie eine Unternehmensanalyse wünschen, benötigen wir Ihre Adresse und auch einen Ansprechpartner für eventuelle Rückfragen. "]
[]
["2.","Angaben zum Betrieb"]
[]
[null,"Bei der Rechtsform geben Sie bitte die entsprechende Zahl ein"]
[null,"Geben Sie bitte bei der Miete nur einen Wert an, wenn Ihr Betrieb oder ein Teil Ihres Betriebes auf eigenem Grundstück und in eigenen Räumen tätig ist. Anhaltswerte für eine angemessene Miete kann Ihnen möglicherweise ein Mietspiegel Ihrer Gemeinde geben. Andernfalls könnte Ihnen bei der Beantwortung dieser Frage ein ortsüblicher Mietpreis pro Quadratmeter und Ihre Quadratmeterzahl als Grundlage dienen."]
[]
["3.","Angaben zur Beschäftigtenstruktur"]
[]
[null,"Unter der Beschäftigtenstruktur möchten wir von Ihnen die Anzahl Ihrer Arbeitnehmer erfahren, getrennt nach den Tätigkeitsbereichen. Je genauer Sie hier die Angaben machen, desto besser sind die Aussagen bei Ihrer Unternehmensanalyse. Beim Ausfüllen beachten Sie bitte folgende Bewertungen:"]
[]
[null,"Vollzeitkräfte:"]
[null,"Ein Beschäftigter, der beschäftigt war vom Januar bis Dezember mit einer normalen Wochenarbeitszeit, ist zu bewerten mit 1. Ein Beschäftigter, der weniger als 12 Monate mit einer normalen Wochenarbeitszeit beschäftigt war, ist entsprechend geringer zu bewerten."]
[null,"1 Beschäftigter mit 12 Monaten = 1"]
[null,"1 Beschäftigter mit 5 Monaten = 5/12  = 0,42"]
[]
[null,"Teilzeitkräfte:"]
[null,"Ein Beschäftigter, der beschäftigt war von Januar bis Dezember, oder kürzer mit einer geringeren Wochenarbeitszeit, ist entsprechend zu bewerten"]
[null,"1 Beschäftigter mit 12 Monaten und 50% der normalen Wochenarbeitzeit = 0,5"]
[null,"1 Beschäftigter mit 6 Monaten und 50% der normalen Wochenarbeitzeit = 0,25"]
[]
[null,"Aushilfen:"]
[null,"Aushilfen sind entsprechend ihrer bezahlten Stunden im Vergleich zu den normalen bezahlten Stunden im Jahr zu bewerten."]
[null,"Aushilfsstunden im Jahr                        ",null,null,null,"z. B.",500,"= 0,24"]
[null,"Normal zu bezahlende Stunden im Jahr",null,null,null,null,2080]
[]
[null,"Inhaber"]
["3.01\nbis\n3.03","In vielen Fällen ist die normale Wochenarbeitszeit der Inhaber dauernd höher als die seiner Mitarbeiter. Geben Sie daher bitte die durchschnittliche Wochenarbeitszeit des Inhabers an. Für die Auswertung ist es wichtig, wie groß der Anteil der handwerklichen Tätigkeiten (=direkt verrechenbare Inhaberstunden) an seinen Gesamtstunden ist."]
[]
[null,"Meister, Betriebsleiter u.a. im Angestelltenverhältnis"]
["3.04","Mitarbeiter, die im Angestelltenverhältnis stehen, deren Arbeit aber zum Teil \"produktiv\" ist, "]
["bis","sollten hier eingetragen werden. Der produktive bzw. unproduktive Anteil ist dabei"]
["3.05","in Prozent festzuhalten. Mit \"produktive\" Tätigkeit sind hier Tätigkeiten gemeint, die direkt"]
[null,"verrechenbar sind, also einem Auftrag zugerechnet werden können. Der entsprechende Anteil "]
[null,"des Gehaltes sollte im Bereich der GuV dem Lohnaufwand zugerechnet werden."]
[]
[null,"Angaben zur Kapazität"]
["3.11\nbis\n3.12","Geben Sie bitte die Krankheitstage, Urlaubstage und die bezahlten Überstunden an. Bei den Überstunden sind nur die Stunden zu berücksichtigen, die tatsächlich angefallen und bezahlt wurden und nicht durch ein Arbeitszeitkonto (flexible Arbeitszeiten) ausgeglichen wurden. Bei den Krankheitstagen geht es nur um die Tage mit Lohnfortzahlung durch den Arbeitgeber. Fehlt ein Mitarbeiter länger, ist dies bei der Anzahl der Mitarbeiter entsprechend zu kürzen."]
["3.13","Bitte tragen Sie die Zeiten in Stunden aller Gesellen ein, für die Kurzarbeitsgeld gezahlt wurde."]
["3.15","Unproduktiv sind Zeiten, für die der Arbeitnehmer eine Vergütung erhält und die dem Kunden nicht direkt in Rechnung gestellt werden. Beispiele hierfür sind:\n- bezahlte Fahrzeit, die nicht in den Auftrag einkalkuliert ist\n- Wartezeit auf der Baustelle, die nicht einkalkuliert ist\n- Zeiten für nicht vergütete Gewährleistungsarbeiten\nSchätzen Sie diesen Anteil pauschal in Stunden pro Tag eines Arbeitnehmers.\n"]
["3.16","Als Mittellohn tragen Sie bitte den von Ihnen durchschnittlich im Jahr gezahlten Stundenlohn ohne VL ein."]
[null,"Beispiel:","Geselle A",18.5,"€"]
[null,null,"Geselle B",16.5,"€"]
[null,null,"Helfer",14,"€"]
[]
[null,null,"Summe",{"$f":"SUM(D142:D145)","v":49},"€"]
[]
[null,null,"Mittellohn =",{"$f":"CONCATENATE(D146,\" / 3     =\")","v":"49 / 3     ="},16.329999999999998,"€"]
[]
[]
["3.17","Haben Sie in Ihrem Betrieb Leiharbeiter eingesetzt, so geben Sie bitte die produktiven Stunden an, die diese Leiharbeitskräfte für Sie tätig waren. Die Kosten für die Leiharbeiter tragen Sie bitte in der GuV ein."]
[]
["4.","Angaben zur Gewinn- und Verlustrechnung"]
[null,"Die Ihnen vorliegende Gewinn- und Verlustrechnung (kurz: GuV) wird nach steuerlichen Gesichtspunkten erstellt. Ziel der GuV ist es, den „Gewinn vor Steuern“ zu ermitteln. Dieser wird für die Einkommensteuererklärung benötigt (= Einkünfte aus Gewerbebetrieb)."]
[null,"Für die steuerliche Gewinnermittlung spielt es eine nachrangige Rolle, ob die diesbezüglichen Erträge aus der handwerklichen Haupttätigkeit oder einer betrieblichen Nebentätigkeit (z.B. Energiegewinnung, Untervermietung) oder einer steuerlichen Vorschrift (z.B. private Nutzung von Betriebsvermögen, Verkaufserlöse abweichend von ihrem Buchwert, Wertberichtigungen)."]
[null,"Für den Betriebsvergleich hingegen ist die Abgrenzung von handwerklicher Haupttätigkeit und betrieblicher Nebentätigkeit bzw. steuerlichen Vorschriften wichtig. Denn die Unternehmensanalyse konzentriert sich auf die Ertragskraft der handwerklichen Haupttätigkeit."]
[null,"Dazu sollten bei den Umsatzerlösen die handwerksfremden Bestandteile nicht mit angegeben werden. Auch die „Sonstigen betrieblichen Erträge“ werden in der Auswertung später nicht berücksichtigt. Erfahrungsgemäß gehen mit solchen Erträgen auch Aufwendungen (z.B. Abschreibungen, Versicherungskosten und Finanzierungszinsen) einher, die ebenfalls so weit wie möglich herausgerechnet werden müssen. "]
[null,"Die abgefragten Positionen der Gewinn- und Verlustrechnung entsprechen im betrieblichen Bereich weitestgehend den Kostenarten, die in den meisten Kontennachweisen aufgeführt sind. Bei anderen Kostenarten ordnen Sie diese bitte sachlich zu. Im Folgenden sind zu einigen Positionen Tipps bzw. Besonderheiten aufgeführt:"]
["4.01","Umsatzerlöse sind in erster Linie Erlöse für erbrachte Leistungen in der Fertigung (inkl. eigenaktivierte Leistungen). Zwar zählen seit dem 01.01.2016 handwerksfremde Sachverhalte wie z.B. Energiegewinnung, Untervermietung, private Nutzung von Fahrzeugen zu den Umsatzerlösen, diese sollten aber möglichst nicht in diese Position einfließen. Dies ist wichtig, um beurteilen zu können, ob der Handwerksbetrieb rentabel arbeitet."]
["4.02","Bestandsveränderungen beziehen sich auf die zum Bilanzstichtag nicht abgeschlossenen Bauaufträge und sonstige Aufträge."]
["4.03","Zu den sonstigen betrieblichen Erträgen zählen insbesondere Erträge aus dem Verkauf von Anlagevermögen, der Auflösung von Rückstellungen, vorgenommenen Wertberichtigungen, erhaltene Entschädigungen, Beilegung von Rechtsstreitigkeiten etc. Nicht dazu zählen: Erstattungen fürs Personal (Urlaubsentgelt, Ausbildungsvergütung und überbetriebliche Ausbildung, Lohnfortzahlung im Krankheitsfall (U1-Umlage). Diese müssen im Personalaufwand berücksichtigt sein."]
["4.05","Tragen Sie hier nur den Wert aus der GuV ein. Zuschlagsätze spielen dabei keine Rolle."]
["4.06","Tragen Sie hier nur den Wert aus der GuV ein. Zuschlagsätze spielen dabei keine Rolle."]
["4.07","Tragen Sie hier bitte die Kosten für die Leiharbeiter ein für die Sie unter Punkt 3.17 die Stunden angegeben haben."]
["4.08","Geben Sie bitte den Durchschnittlichen Stundensatz an, den Sie für die Leiharbeiter zahlen."]
["4.09\nbis\n4.14","Die im Erhebungsbogen aufgeführten Positionen zum Personalaufwand werden Sie so nicht in Ihrer Gewinn- und Verlustrechnung finden. Diese Angaben sollten Sie aus Ihrer Lohnbuchhaltung entnehmen. Die Unterteilung des gesamten Personalaufwandes in die einzelnen gehalts- bzw. lohnbezogenen Bestandteile ist für die Berechnung einiger Kennzahlen erforderlich."]
["4.15\nbis\n4.17","Bitte tragen Sie hier nur die normalen steuerlichen Abschreibungen ein. Für „Abschreibungen auf Forderungen“ gilt beim Betriebsvergleich: Einzelwertberichtigungen und Pauschalwertberichtigungen gehören zu den sonstigen betrieblichen Aufwendungen. "]
["4.18","Hierunter fallen geringwertige Wirtschaftsgüter bis 150 Euro (bei Poolabschreibung) bzw. bis 410 Euro (wenn keine Poolabschreibung erfolgt), die sofort zu 100 % als Betriebsausgaben abgeschrieben werden. "]
["4.19\nbis\n4.29","Die Aufteilung der sonstigen Aufwendungen orientiert sich am Kontenrahmen SKR03. Um eine bessere Übersichtlichkeit zu erreichen, wurden einige Positionen zusammengefasst. Wir bitten, keine weiteren Positionen zusammenzufassen, sondern Ihre Aufwendungen den vorgegebenen Positionen zuzuordnen, da die Aussagekraft der Auswertungen ansonsten nicht mehr in dem gewünschten Maße gegeben ist. Aufwandspositionen, die mit der Bildung von Rückstellungen und Rücklagen verbunden sind, werden beim Betriebsvergleich unter 4.29 sonstiger betrieblicher Aufwand angegeben."]
[]
["5.","Sonstige Angaben"]
[null,"Falls in Ihrer Gewinn- und Verlustrechnung keine genauen Angaben zur Auftraggeberstruktur zu finden sind, geben Sie bitte möglichst gewissenhafte Schätzungen zu den einzelnen Positionen an."]
[null,"Bei den Zuschlägen auf Material und Fremdleistungen geben Sie bitte die Werte an, die Sie durchschnittlich verrechnen. Sollten Sie hierzu keine Aufzeichnungen haben, nehmen Sie bitte eine gewissenhafte Schätzung vor."]
[]
[]
["6.","Angaben zur Bilanz"]
[null,"Ebenso wie im Bereich der Gewinn- und Verlustrechnung ist der Kontennachweis der Bilanz aus dem Jahresabschluss hilfreich, um korrekte Angaben machen zu können. Da die vorliegende Bilanzgliederung vereinfacht und auf das Wesentliche beschränkt ist, ordnen Sie bitte weitergehende Untergliederungen den aufgeführten Bilanzpositionen sachlich zu."]
[null,"Aktiva:"]
["6.01\nbis\n6.08","Wenn Sie einen Wert im Bereich des Anlagevermögens eintragen, achten Sie darauf, dass im Bereich der GuV die entsprechenden Abschreibungen gebucht wurden."]
["6.02\nbis\n6.03","Bitte achten Sie auf die Trennung von Grundstücken und Gebäuden zu den Mietereinbauten. Falsche Angaben können die Berechnung der kalkulatorischen Miete beeinflussen."]
["6.17","Negatives Eigenkapital wird in die Position „nicht durch Eigenkapital gedeckter Fehlbetrag“ eingetragen. Da negatives Eigenkapital auf der Aktivseite der Bilanz ausgewiesen wird, ist darauf zu achten, dass in solchen Fällen auf der Passivseite kein Eigenkapital zum 31.12. mehr einzutragen ist."]
[null,"Summe Aktiva"]
[null,"Für Kontrollzwecke bitte den Wert aus der Bilanz angeben."]
[]
[null,"Passiva:"]
[]
["6.18\nbis\n6.22","Der in der Bilanz angegebene Gewinn bzw. Verlust entspricht dem Jahresüberschuss bzw. Jahresfehlbetrag aus der Gewinn- und Verlustrechnung (GuV). Für GmbH mit negativem Eigenkapital gilt: Das Eigenkapital am 01.01. entspricht dem nominalen Stammkapital plus dem Verlustvortrag vom 31.12. des Vorjahres."]
[]
["6.23","Gesellschafterdarlehen werden im Erhebungsbogen zum Betriebsvergleich als „Fremdkapital“ erfasst – unabhängig davon, ob ein Rangrücktritt erklärt ist."]
[]
[null,"Summe Passiva"]
[null,"Für Kontrollzwecke bitte den Wert aus der Bilanz angeben."]
[]
[]
[]
[]
[]
[]
[]
[]
[]
[]
[]
[]
[]
[]
[]
[]
[]
[]
[]
[]
[]
[]
[]
[]
[]
[]
[]
[]
[]
[]
[]
[]
[]
[]
[]
[]
[]
[]
[]
[]
[]
[]
[]
[]
[]
[]
[]
[]
[]
[]
[]
[]
[]
[]
[]
[]
[null,null,null,null,"Leiharbeiter"]
[null,null,null,null,"Haben Sie in Ihrem Betrieb Leiharbeiter eingesetzt, so geben Sie bitte die produktiven Stunden an, die diese Leiharbetskräfte für Sie tätig waren. Die Kosten für die Leiharbeiter tragen Sie bitte in der GuV ein."]